[Event "*** Titled Tuesday Blitz"]
[Site "Chess.com"]
[Date "2020.04.14"]
[Round "7"]
[White "KazakhFighter04"]
[Black "Zq1"]
[Result "1/2-1/2"]
[WhiteElo "2720"]
[BlackElo "2581"]
[TimeControl "180+1"]
[EndTime "11:15:01 PDT"]
[Termination "Game drawn by agreement"]

1. d4 {[%clk 0:03:00.9]} 1... Nf6 {[%clk 0:02:59]} 2. c4 {[%clk 0:03:01.4]} 2...
a6 {[%clk 0:02:59]} 3. Nc3 {[%clk 0:02:59.7]} 3... c5 {[%clk 0:02:59.1]} 4. d5
{[%clk 0:02:58.3]} 4... b5 {[%clk 0:02:58.6]} 5. cxb5 {[%clk 0:02:58.3]} 5...
axb5 {[%clk 0:02:58.8]} 6. Nxb5 {[%clk 0:02:59.2]} 6... Qa5+ {[%clk 0:02:58.5]}
7. Nc3 {[%clk 0:02:58]} 7... Bb7 {[%clk 0:02:58.3]} 8. Bd2 {[%clk 0:02:55.9]}
8... Qb6 {[%clk 0:02:58.3]} 9. e4 {[%clk 0:02:55.7]} 9... e6 {[%clk 0:02:57.6]}
10. Nf3 {[%clk 0:02:46.2]} 10... exd5 {[%clk 0:02:55.8]} 11. e5 {[%clk
0:02:41.5]} 11... Ne4 {[%clk 0:02:49.1]} 12. Nxe4 {[%clk 0:02:40.7]} 12... dxe4
{[%clk 0:02:48.7]} 13. Ng5 {[%clk 0:02:41.6]} 13... h6 {[%clk 0:02:33.2]} 14.
Nxf7 {[%clk 0:02:37.5]} 14... Kxf7 {[%clk 0:02:28.1]} 15. Bc4+ {[%clk
0:02:37.9]} 15... Ke8 {[%clk 0:02:18.1]} 16. e6 {[%clk 0:02:34.4]} 16... dxe6
{[%clk 0:01:51.1]} 17. Qh5+ {[%clk 0:02:32]} 17... Ke7 {[%clk 0:01:49.8]} 18.
O-O {[%clk 0:01:20.1]} 18... Nd7 {[%clk 0:01:48.7]} 19. Bc3 {[%clk 0:01:08.4]}
19... Nf6 {[%clk 0:01:41.8]} 20. Qg6 {[%clk 0:01:08.5]} 20... Bd5 {[%clk
0:01:28.7]} 21. Be2 {[%clk 0:01:04.7]} 21... Qc6 {[%clk 0:01:19]} 22. b4 {[%clk
0:00:58.5]} 22... Qe8 {[%clk 0:01:14.3]} 23. Qg3 {[%clk 0:00:55.1]} 23... Qb8
{[%clk 0:01:08.6]} 24. Be5 {[%clk 0:00:53.1]} 24... Qxb4 {[%clk 0:01:08.2]} 25.
f3 {[%clk 0:00:29.6]} 25... e3 {[%clk 0:00:56.4]} 26. Rfc1 {[%clk 0:00:22.2]}
26... Kf7 {[%clk 0:00:53.7]} 27. Bd3 {[%clk 0:00:15.6]} 27... g5 {[%clk
0:00:49.7]} 28. f4 {[%clk 0:00:09.1]} 28... g4 {[%clk 0:00:37.6]} 29. f5 {[%clk
0:00:08.6]} 29... Qd2 {[%clk 0:00:30.2]} 30. fxe6+ {[%clk 0:00:05]} 30... Bxe6
{[%clk 0:00:27.7]} 31. Rf1 {[%clk 0:00:05.6]} 31... Qxd3 {[%clk 0:00:17.3]} 32.
Rxf6+ {[%clk 0:00:04.9]} 32... Ke7 {[%clk 0:00:17.5]} 33. Rxe6+ {[%clk
0:00:03.8]} 33... Kxe6 {[%clk 0:00:17.6]} 34. Bxh8 {[%clk 0:00:04.3]} 34... Rd8
{[%clk 0:00:15.5]} 35. Qxg4+ {[%clk 0:00:04.5]} 35... Qf5 {[%clk 0:00:14.8]} 36.
Qc4+ {[%clk 0:00:04.9]} 36... Ke7 {[%clk 0:00:13.9]} 37. Bc3 {[%clk 0:00:02.5]}
37... Qd3 {[%clk 0:00:11.6]} 38. Qh4+ {[%clk 0:00:01.7]} 38... Ke8 {[%clk
0:00:10.9]} 39. Be1 {[%clk 0:00:02.6]} 39... Bg7 {[%clk 0:00:09.8]} 40. Qh5+
{[%clk 0:00:02.8]} 40... Kf8 {[%clk 0:00:09.1]} 41. Rc1 {[%clk 0:00:03.2]} 41...
Kg8 {[%clk 0:00:08.8]} 42. Qxc5 {[%clk 0:00:02.8]} 42... e2 {[%clk 0:00:08.7]}
43. Qc4+ {[%clk 0:00:03.3]} 43... Qxc4 {[%clk 0:00:08.2]} 44. Rxc4 {[%clk
0:00:04.2]} 44... Bd4+ {[%clk 0:00:08.1]} 45. Rxd4 {[%clk 0:00:02.9]} 45... Rxd4
{[%clk 0:00:07.3]} 46. Kf2 {[%clk 0:00:03.8]} 46... Ra4 {[%clk 0:00:06.7]} 47.
Kxe2 {[%clk 0:00:03.8]} 47... Rxa2+ {[%clk 0:00:07]} 48. Kf3 {[%clk 0:00:04.7]}
48... Kf7 {[%clk 0:00:07.3]} 49. Bf2 {[%clk 0:00:04.7]} 49... Kg6 {[%clk
0:00:07.3]} 50. Be3 {[%clk 0:00:05.2]} 50... h5 {[%clk 0:00:07.3]} 51. h3 {[%clk
0:00:04.8]} 51... Kf5 {[%clk 0:00:06.8]} 52. g4+ {[%clk 0:00:04.7]} 52... hxg4+
{[%clk 0:00:06.7]} 53. hxg4+ {[%clk 0:00:05.6]} 53... Kg6 {[%clk 0:00:07.3]} 54.
Kg3 {[%clk 0:00:05.5]} 54... Ra4 {[%clk 0:00:07.6]} 55. Kf3 {[%clk 0:00:05.5]}
1/2-1/2

[Event "*** Titled Tuesday Blitz"]
[Site "Chess.com"]
[Date "2020.04.14"]
[Round "7"]
[White "SantoBlue"]
[Black "Hikaru"]
[Result "1-0"]
[WhiteElo "2820"]
[BlackElo "3228"]
[TimeControl "180+1"]
[EndTime "11:15:02 PDT"]
[Termination "SantoBlue won by resignation"]

1. e4 {[%clk 0:02:43.6]} 1... g6 {[%clk 0:02:59.9]} 2. d4 {[%clk 0:02:42.8]}
2... Bg7 {[%clk 0:02:59.6]} 3. Nf3 {[%clk 0:02:43.4]} 3... d6 {[%clk 0:02:58.8]}
4. Bd3 {[%clk 0:02:43.4]} 4... Nd7 {[%clk 0:02:57.7]} 5. c3 {[%clk 0:02:43.3]}
5... e5 {[%clk 0:02:58.2]} 6. O-O {[%clk 0:02:43.9]} 6... Ngf6 {[%clk
0:02:57.8]} 7. Be3 {[%clk 0:02:44]} 7... O-O {[%clk 0:02:57.9]} 8. Nbd2 {[%clk
0:02:42.5]} 8... Ng4 {[%clk 0:02:56.9]} 9. Bg5 {[%clk 0:02:42.2]} 9... f6 {[%clk
0:02:57.3]} 10. Bh4 {[%clk 0:02:42.6]} 10... Qe8 {[%clk 0:02:54.4]} 11. h3
{[%clk 0:02:37]} 11... Nh6 {[%clk 0:02:54.4]} 12. Nc4 {[%clk 0:02:37.2]} 12...
Nf7 {[%clk 0:02:52.6]} 13. Ne3 {[%clk 0:02:37]} 13... c6 {[%clk 0:02:52.6]} 14.
Re1 {[%clk 0:02:36.1]} 14... Kh8 {[%clk 0:02:52.6]} 15. Bg3 {[%clk 0:02:36.4]}
15... Qe7 {[%clk 0:02:52]} 16. Bc4 {[%clk 0:02:32.9]} 16... Nb6 {[%clk
0:02:48.3]} 17. Bb3 {[%clk 0:02:32.8]} 17... Be6 {[%clk 0:02:32.8]} 18. a4
{[%clk 0:02:28]} 18... a5 {[%clk 0:02:28.7]} 19. Qc2 {[%clk 0:02:23.7]} 19...
Rac8 {[%clk 0:02:17.1]} 20. Rad1 {[%clk 0:02:21.8]} 20... c5 {[%clk 0:02:17.4]}
21. Bxe6 {[%clk 0:02:18.5]} 21... Qxe6 {[%clk 0:02:18.3]} 22. d5 {[%clk
0:02:16.8]} 22... Qd7 {[%clk 0:02:15.7]} 23. Ra1 {[%clk 0:02:12.1]} 23... c4
{[%clk 0:02:12.6]} 24. Nd2 {[%clk 0:02:11.1]} 24... Bh6 {[%clk 0:02:10.7]} 25.
f3 {[%clk 0:02:09.1]} 25... Bxe3+ {[%clk 0:01:53.6]} 26. Rxe3 {[%clk 0:02:08.7]}
26... Qc7 {[%clk 0:01:54.3]} 27. Bf2 {[%clk 0:02:07.3]} 27... Nd7 {[%clk
0:01:54.4]} 28. g3 {[%clk 0:01:57.8]} 28... Nh6 {[%clk 0:01:54]} 29. Rf1 {[%clk
0:01:55.9]} 29... f5 {[%clk 0:01:54.1]} 30. f4 {[%clk 0:01:55.3]} 30... exf4
{[%clk 0:01:41.5]} 31. gxf4 {[%clk 0:01:55]} 31... Nf6 {[%clk 0:01:42.1]} 32.
Rd1 {[%clk 0:01:40.6]} 32... Qd7 {[%clk 0:01:32.8]} 33. e5 {[%clk 0:01:13.4]}
33... Nxd5 {[%clk 0:01:31.8]} 34. Nxc4 {[%clk 0:00:57.9]} 34... Nxe3 {[%clk
0:01:14.8]} 35. Nxe3 {[%clk 0:00:58.1]} 35... Nf7 {[%clk 0:01:12.7]} 36. Qb3
{[%clk 0:00:57]} 36... Rfe8 {[%clk 0:01:08.9]} 37. Nd5 {[%clk 0:00:55.9]} 37...
dxe5 {[%clk 0:00:39.2]} 38. Nb6 {[%clk 0:00:51.5]} 38... Qe6 {[%clk 0:00:33.5]}
39. Qxe6 {[%clk 0:00:51.3]} 39... Rxe6 {[%clk 0:00:34.4]} 40. Nxc8 {[%clk
0:00:51.9]} 40... exf4 {[%clk 0:00:34.7]} 41. Rd7 {[%clk 0:00:49]} 41... Ng5
{[%clk 0:00:35]} 42. Bd4+ {[%clk 0:00:29.9]} 42... Kg8 {[%clk 0:00:35.4]} 43.
Nd6 {[%clk 0:00:29.6]} 43... Nf3+ {[%clk 0:00:33.3]} 44. Kf2 {[%clk 0:00:29.8]}
44... Nxd4 {[%clk 0:00:33.9]} 45. cxd4 {[%clk 0:00:30.7]} 45... h5 {[%clk
0:00:32]} 46. d5 {[%clk 0:00:30.1]} 46... Re3 {[%clk 0:00:30.6]} 47. Nc4 {[%clk
0:00:27.8]} 47... Rxh3 {[%clk 0:00:30.1]} 48. d6 {[%clk 0:00:28.1]} 48... Rd3
{[%clk 0:00:27.1]} 49. Rxb7 {[%clk 0:00:25.1]} 49... Kf8 {[%clk 0:00:25.2]} 50.
Rb8+ {[%clk 0:00:24.3]} 50... Kg7 {[%clk 0:00:24.8]} 51. Rb7+ {[%clk 0:00:24.4]}
51... Kf6 {[%clk 0:00:24.9]} 52. d7 {[%clk 0:00:23]} 52... h4 {[%clk 0:00:24.3]}
53. Ke2 {[%clk 0:00:19.7]} 53... Rd4 {[%clk 0:00:21.2]} 54. Nb6 {[%clk
0:00:19.4]} 54... h3 {[%clk 0:00:20.4]} 55. Rb8 {[%clk 0:00:19.8]} 55... h2
{[%clk 0:00:17.3]} 56. Rh8 {[%clk 0:00:19.8]} 56... Ke7 {[%clk 0:00:05.2]} 57.
Rxh2 {[%clk 0:00:19.2]} 1-0

[Event "*** Titled Tuesday Blitz"]
[Site "Chess.com"]
[Date "2020.04.14"]
[Round "7"]
[White "Klavdia_Nik"]
[Black "jonaszmb"]
[Result "0-1"]
[WhiteElo "2157"]
[BlackElo "2414"]
[TimeControl "180+1"]
[EndTime "11:15:04 PDT"]
[Termination "jonaszmb won on time"]

1. Nf3 {[%clk 0:02:48.3]} 1... c5 {[%clk 0:02:57.5]} 2. c4 {[%clk 0:02:47.4]}
2... g6 {[%clk 0:02:56.5]} 3. Nc3 {[%clk 0:02:46.5]} 3... Bg7 {[%clk 0:02:56.6]}
4. d4 {[%clk 0:02:46.9]} 4... cxd4 {[%clk 0:02:57.5]} 5. Nxd4 {[%clk 0:02:46.9]}
5... Nc6 {[%clk 0:02:57.3]} 6. e3 {[%clk 0:02:47.1]} 6... Nf6 {[%clk 0:02:55.6]}
7. Be2 {[%clk 0:02:45.4]} 7... O-O {[%clk 0:02:55.4]} 8. O-O {[%clk 0:02:45.1]}
8... d6 {[%clk 0:02:54]} 9. b3 {[%clk 0:02:39.6]} 9... Bd7 {[%clk 0:02:30.4]}
10. Bb2 {[%clk 0:02:35.4]} 10... a5 {[%clk 0:02:29.3]} 11. Ndb5 {[%clk
0:02:32.1]} 11... Na7 {[%clk 0:01:57.5]} 12. a4 {[%clk 0:01:54.6]} 12... Nc6
{[%clk 0:01:55.5]} 13. Qc1 {[%clk 0:01:46.5]} 13... Nb4 {[%clk 0:01:54.1]} 14.
e4 {[%clk 0:01:39.1]} 14... Bc6 {[%clk 0:01:50.8]} 15. f3 {[%clk 0:01:33.8]}
15... Qb6+ {[%clk 0:01:47]} 16. Kh1 {[%clk 0:01:33.1]} 16... Nd7 {[%clk
0:01:33.1]} 17. Nd5 {[%clk 0:01:32]} 17... Bxd5 {[%clk 0:01:33.2]} 18. exd5
{[%clk 0:01:26.9]} 18... Bxb2 {[%clk 0:01:30.1]} 19. Qxb2 {[%clk 0:01:26.8]}
19... Qe3 {[%clk 0:01:24.8]} 20. Rae1 {[%clk 0:01:12.1]} 20... Nc5 {[%clk
0:01:20.8]} 21. Bd1 {[%clk 0:01:04]} 21... Qg5 {[%clk 0:01:18.7]} 22. Qd4 {[%clk
0:00:52.6]} 22... b6 {[%clk 0:01:00.4]} 23. Qe3 {[%clk 0:00:49.5]} 23... Qxe3
{[%clk 0:00:50.2]} 24. Rxe3 {[%clk 0:00:49.5]} 24... Nbd3 {[%clk 0:00:29.1]} 25.
Nd4 {[%clk 0:00:47]} 25... Rfe8 {[%clk 0:00:24.7]} 26. Bc2 {[%clk 0:00:43.1]}
26... Nb4 {[%clk 0:00:23.1]} 27. Bb1 {[%clk 0:00:43]} 27... Kf8 {[%clk
0:00:23.1]} 28. Rfe1 {[%clk 0:00:42.9]} 28... Ra7 {[%clk 0:00:22.1]} 29. g4
{[%clk 0:00:42.8]} 29... h6 {[%clk 0:00:20.3]} 30. Kg2 {[%clk 0:00:42.7]} 30...
Nd7 {[%clk 0:00:15.7]} 31. Kg3 {[%clk 0:00:41.6]} 31... Nf6 {[%clk 0:00:14.3]}
32. h4 {[%clk 0:00:40.5]} 32... g5 {[%clk 0:00:14.5]} 33. Nf5 {[%clk 0:00:38.6]}
33... gxh4+ {[%clk 0:00:12.6]} 34. Kxh4 {[%clk 0:00:35.7]} 34... Ng8 {[%clk
0:00:10.3]} 35. Nxd6 {[%clk 0:00:33.7]} 35... Rd8 {[%clk 0:00:05.6]} 36. Nf5
{[%clk 0:00:33.3]} 36... Na6 {[%clk 0:00:04.1]} 37. Kh5 {[%clk 0:00:31.5]} 37...
Nc5 {[%clk 0:00:04.3]} 38. Nxh6 {[%clk 0:00:30.2]} 38... Nxh6 {[%clk 0:00:05.2]}
39. Kxh6 {[%clk 0:00:30.1]} 39... e6 {[%clk 0:00:06.1]} 40. dxe6 {[%clk
0:00:25.2]} 40... fxe6 {[%clk 0:00:07]} 41. Kg5 {[%clk 0:00:25.1]} 41... Rg7+
{[%clk 0:00:06.7]} 42. Kf4 {[%clk 0:00:24.5]} 42... Rf7+ {[%clk 0:00:06.9]} 43.
Kg3 {[%clk 0:00:24.5]} 43... Rd2 {[%clk 0:00:06.7]} 44. Bg6 {[%clk 0:00:20.5]}
44... Rf6 {[%clk 0:00:06.3]} 45. Be4 {[%clk 0:00:18.8]} 45... Rb2 {[%clk
0:00:06.2]} 46. g5 {[%clk 0:00:17]} 46... Rf7 {[%clk 0:00:04.7]} 47. Rb1 {[%clk
0:00:16.2]} 47... Rd2 {[%clk 0:00:03]} 48. Kg4 {[%clk 0:00:10.8]} 48... Rg7
{[%clk 0:00:03.2]} 49. f4 {[%clk 0:00:10.1]} 49... Ke7 {[%clk 0:00:03.5]} 50. g6
{[%clk 0:00:05.7]} 50... Rf2 {[%clk 0:00:03.6]} 51. f5 {[%clk 0:00:04.2]} 51...
Nxe4 {[%clk 0:00:03.3]} 52. Rxe4 {[%clk 0:00:02.5]} 52... Rxf5 {[%clk
0:00:03.5]} 0-1

[Event "*** Titled Tuesday Blitz"]
[Site "Chess.com"]
[Date "2020.04.14"]
[Round "7"]
[White "ENEASZ"]
[Black "Saloni1299"]
[Result "1-0"]
[WhiteElo "2498"]
[BlackElo "2243"]
[TimeControl "180+1"]
[EndTime "11:15:06 PDT"]
[Termination "ENEASZ won by resignation"]

1. e4 {[%clk 0:02:56.7]} 1... e6 {[%clk 0:02:59.2]} 2. d4 {[%clk 0:02:56.3]}
2... d5 {[%clk 0:02:58.4]} 3. Bd3 {[%clk 0:02:56.7]} 3... c5 {[%clk 0:02:56.6]}
4. exd5 {[%clk 0:02:55.3]} 4... exd5 {[%clk 0:02:56]} 5. Nf3 {[%clk 0:02:54.9]}
5... c4 {[%clk 0:02:54.2]} 6. Be2 {[%clk 0:02:53.9]} 6... Nf6 {[%clk 0:02:54.8]}
7. O-O {[%clk 0:02:53]} 7... Be7 {[%clk 0:02:52.8]} 8. b3 {[%clk 0:02:51.3]}
8... cxb3 {[%clk 0:02:52.2]} 9. axb3 {[%clk 0:02:52.2]} 9... O-O {[%clk
0:02:52.1]} 10. Re1 {[%clk 0:02:45.8]} 10... Nc6 {[%clk 0:02:50.3]} 11. c3
{[%clk 0:02:44.3]} 11... Bg4 {[%clk 0:02:45.9]} 12. Nbd2 {[%clk 0:02:35.7]}
12... Qc7 {[%clk 0:02:40.6]} 13. Nf1 {[%clk 0:02:32.7]} 13... Bd6 {[%clk
0:02:35.3]} 14. Ne3 {[%clk 0:02:29.1]} 14... Bxf3 {[%clk 0:02:32.3]} 15. Bxf3
{[%clk 0:02:29.2]} 15... Bxh2+ {[%clk 0:02:29.1]} 16. Kh1 {[%clk 0:02:29.6]}
16... Rad8 {[%clk 0:02:19.8]} 17. g3 {[%clk 0:02:20.4]} 17... Bxg3 {[%clk
0:02:19.9]} 18. fxg3 {[%clk 0:02:21.3]} 18... Qxg3 {[%clk 0:02:20]} 19. Qe2
{[%clk 0:02:16.6]} 19... Rfe8 {[%clk 0:02:16.8]} 20. Rf1 {[%clk 0:01:50.2]}
20... Ne4 {[%clk 0:01:52.6]} 21. Qh2 {[%clk 0:01:29.8]} 21... Qxh2+ {[%clk
0:01:46.4]} 22. Kxh2 {[%clk 0:01:30.7]} 22... Nxc3 {[%clk 0:01:46.9]} 23. Nf5
{[%clk 0:01:12.9]} 23... g6 {[%clk 0:01:42.3]} 24. Nh6+ {[%clk 0:01:12.9]} 24...
Kg7 {[%clk 0:01:42.6]} 25. Ng4 {[%clk 0:00:58.4]} 25... h5 {[%clk 0:01:33.9]}
26. Nf2 {[%clk 0:00:47.5]} 26... Nxd4 {[%clk 0:01:34.1]} 27. Bg2 {[%clk
0:00:47.2]} 27... Nde2 {[%clk 0:01:18.2]} 28. Bb2 {[%clk 0:00:44.2]} 28... a6
{[%clk 0:01:16.8]} 29. Nd3 {[%clk 0:00:42.2]} 29... d4 {[%clk 0:01:10.1]} 30.
Rf2 {[%clk 0:00:41.8]} 30... Re3 {[%clk 0:01:07.9]} 31. Nc5 {[%clk 0:00:36.1]}
31... b6 {[%clk 0:01:04.7]} 32. Nxa6 {[%clk 0:00:29]} 32... g5 {[%clk 0:00:59]}
33. Nb4 {[%clk 0:00:22]} 33... g4 {[%clk 0:00:46.2]} 34. Rf5 {[%clk 0:00:21.2]}
34... Kg6 {[%clk 0:00:40.9]} 35. Raf1 {[%clk 0:00:20.2]} 35... g3+ {[%clk
0:00:32.2]} 36. Kh3 {[%clk 0:00:20.1]} 36... Ne4 {[%clk 0:00:30]} 37. Bxe4
{[%clk 0:00:17.8]} 37... Rxe4 {[%clk 0:00:29.5]} 38. Nc6 {[%clk 0:00:18.1]}
38... Rd6 {[%clk 0:00:08.5]} 39. Nb4 {[%clk 0:00:18.1]} 39... d3 {[%clk
0:00:08]} 40. Nxd3 {[%clk 0:00:18]} 40... Rxd3 {[%clk 0:00:08.1]} 41. Rf6+
{[%clk 0:00:18.5]} 41... Kg7 {[%clk 0:00:06.4]} 42. R6f3+ {[%clk 0:00:15.6]}
42... Kg6 {[%clk 0:00:06.2]} 43. Rxd3 {[%clk 0:00:15.2]} 43... Nf4+ {[%clk
0:00:06.1]} 44. Rxf4 {[%clk 0:00:15.1]} 44... Rxf4 {[%clk 0:00:06.7]} 45. Kxg3
{[%clk 0:00:15.6]} 45... Rb4 {[%clk 0:00:07.2]} 46. Kf3 {[%clk 0:00:15.1]} 46...
Rg4 {[%clk 0:00:07.7]} 47. Be5 {[%clk 0:00:14.8]} 47... f6 {[%clk 0:00:07.7]}
48. Bf4 {[%clk 0:00:14.5]} 48... Kf5 {[%clk 0:00:07.1]} 49. Rd5+ {[%clk
0:00:14.6]} 49... Kg6 {[%clk 0:00:07.7]} 50. b4 {[%clk 0:00:14.5]} 50... f5
{[%clk 0:00:04.3]} 51. Rd6+ {[%clk 0:00:13.6]} 51... Kf7 {[%clk 0:00:05]} 52.
Rxb6 {[%clk 0:00:14.2]} 52... h4 {[%clk 0:00:05.5]} 53. b5 {[%clk 0:00:13.9]}
53... h3 {[%clk 0:00:05.8]} 54. Rh6 {[%clk 0:00:14]} 54... h2 {[%clk 0:00:05.8]}
55. Rxh2 {[%clk 0:00:13.8]} 55... Rg1 {[%clk 0:00:06.4]} 56. Rb2 {[%clk
0:00:13.6]} 56... Rb1 {[%clk 0:00:06.9]} 57. Rxb1 {[%clk 0:00:13.4]} 57... Ke6
{[%clk 0:00:07.5]} 58. b6 {[%clk 0:00:14.3]} 1-0

[Event "*** Titled Tuesday Blitz"]
[Site "Chess.com"]
[Date "2020.04.14"]
[Round "7"]
[White "freshfoodcompany"]
[Black "AquivaRubinstein"]
[Result "0-1"]
[WhiteElo "2227"]
[BlackElo "2382"]
[TimeControl "180+1"]
[EndTime "11:15:06 PDT"]
[Termination "AquivaRubinstein won by resignation"]

1. d4 {[%clk 0:03:00.9]} 1... Nf6 {[%clk 0:02:57.7]} 2. c4 {[%clk 0:03:01.1]}
2... c5 {[%clk 0:02:57.1]} 3. d5 {[%clk 0:03:01]} 3... e6 {[%clk 0:02:57.4]} 4.
Nc3 {[%clk 0:03:00.4]} 4... exd5 {[%clk 0:02:58]} 5. cxd5 {[%clk 0:03:00.4]}
5... d6 {[%clk 0:02:58.7]} 6. Nf3 {[%clk 0:02:57.9]} 6... g6 {[%clk 0:02:59.3]}
7. h3 {[%clk 0:02:57.6]} 7... Bg7 {[%clk 0:02:59.7]} 8. Bf4 {[%clk 0:02:57.7]}
8... O-O {[%clk 0:02:59.6]} 9. e3 {[%clk 0:02:57.7]} 9... Na6 {[%clk 0:02:58.9]}
10. Be2 {[%clk 0:02:56.4]} 10... Nc7 {[%clk 0:02:58.9]} 11. O-O {[%clk 0:02:56]}
11... b6 {[%clk 0:02:59.2]} 12. Bc4 {[%clk 0:02:50.9]} 12... Ba6 {[%clk
0:02:56.2]} 13. Bxa6 {[%clk 0:02:49.9]} 13... Nxa6 {[%clk 0:02:55.9]} 14. Nb5
{[%clk 0:02:49.3]} 14... Ne8 {[%clk 0:02:55.9]} 15. Qe2 {[%clk 0:02:40.8]} 15...
Nac7 {[%clk 0:02:42.3]} 16. Nxc7 {[%clk 0:02:36.9]} 16... Nxc7 {[%clk
0:02:42.3]} 17. Rfd1 {[%clk 0:02:35.2]} 17... Re8 {[%clk 0:02:37.8]} 18. Qd3
{[%clk 0:02:29.1]} 18... Bxb2 {[%clk 0:02:34.1]} 19. Rab1 {[%clk 0:02:27.4]}
19... Bg7 {[%clk 0:02:33.8]} 20. Nd2 {[%clk 0:02:22.9]} 20... b5 {[%clk
0:02:13.6]} 21. Ne4 {[%clk 0:02:16.2]} 21... c4 {[%clk 0:02:13.6]} 22. Qc2
{[%clk 0:02:15]} 22... Be5 {[%clk 0:02:09.3]} 23. Bg5 {[%clk 0:02:07.2]} 23...
f6 {[%clk 0:02:09]} 24. Bh4 {[%clk 0:02:06.7]} 24... g5 {[%clk 0:02:08.8]} 25.
Bg3 {[%clk 0:02:06.7]} 25... f5 {[%clk 0:01:40.4]} 26. Bxe5 {[%clk 0:02:02.8]}
26... Rxe5 {[%clk 0:01:40]} 27. Nc3 {[%clk 0:01:57.3]} 27... a6 {[%clk
0:01:35.4]} 28. f4 {[%clk 0:01:54.4]} 28... Rxe3 {[%clk 0:01:31.1]} 29. Re1
{[%clk 0:01:41.8]} 29... Qe7 {[%clk 0:01:29.4]} 30. Kf2 {[%clk 0:01:31.9]} 30...
Re8 {[%clk 0:01:26.4]} 31. Rec1 {[%clk 0:01:09.9]} 31... gxf4 {[%clk 0:01:02.4]}
32. Qxf5 {[%clk 0:01:05.6]} 32... f3 {[%clk 0:00:43.2]} 33. Qg4+ {[%clk
0:00:59.5]} 33... Kh8 {[%clk 0:00:39.9]} 34. Qd4+ {[%clk 0:00:56]} 34... Qe5
{[%clk 0:00:32.8]} 35. Qxe5+ {[%clk 0:00:50.6]} 35... R3xe5 {[%clk 0:00:32.2]}
36. Kxf3 {[%clk 0:00:41.1]} 36... Nxd5 {[%clk 0:00:31.7]} 37. Nxd5 {[%clk
0:00:34.2]} 37... Rxd5 {[%clk 0:00:31.8]} 38. Rd1 {[%clk 0:00:33.8]} 38... Ree5
{[%clk 0:00:31.7]} 39. Kf4 {[%clk 0:00:25.8]} 39... Kg7 {[%clk 0:00:30.9]} 40.
a4 {[%clk 0:00:20.7]} 40... Kf6 {[%clk 0:00:26.8]} 41. axb5 {[%clk 0:00:20.4]}
41... axb5 {[%clk 0:00:26.3]} 42. Rf1 {[%clk 0:00:20.4]} 42... Rf5+ {[%clk
0:00:24.2]} 43. Ke4 {[%clk 0:00:20.3]} 43... Re5+ {[%clk 0:00:23.8]} 44. Kd4
{[%clk 0:00:20.3]} 44... Rxf1 {[%clk 0:00:21.9]} 45. Rxf1+ {[%clk 0:00:20.2]}
45... Ke6 {[%clk 0:00:22.5]} 46. Rf8 {[%clk 0:00:20]} 46... Rd5+ {[%clk
0:00:22.4]} 47. Ke4 {[%clk 0:00:19.6]} 47... Rd2 {[%clk 0:00:20.6]} 48. Re8+
{[%clk 0:00:18.9]} 48... Kd7 {[%clk 0:00:18.7]} 49. Rb8 {[%clk 0:00:17.3]} 49...
Rb2 {[%clk 0:00:17.7]} 50. Rb7+ {[%clk 0:00:16.2]} 50... Kc6 {[%clk 0:00:17.1]}
51. Rxh7 {[%clk 0:00:16]} 51... c3 {[%clk 0:00:16.8]} 52. Kd3 {[%clk 0:00:15.3]}
52... c2 {[%clk 0:00:16.9]} 53. Kd2 {[%clk 0:00:15.2]} 53... b4 {[%clk
0:00:17.1]} 54. g4 {[%clk 0:00:13.6]} 54... b3 {[%clk 0:00:17.1]} 55. Rh8 {[%clk
0:00:13]} 55... Rb1 {[%clk 0:00:15.5]} 56. Rc8+ {[%clk 0:00:12.7]} 56... Kd5
{[%clk 0:00:15.5]} 57. Rc3 {[%clk 0:00:10.3]} 57... Rd1+ {[%clk 0:00:15.2]} 58.
Ke2 {[%clk 0:00:09]} 58... c1=Q {[%clk 0:00:14.8]} 59. Rxc1 {[%clk 0:00:08.7]}
59... Rxc1 {[%clk 0:00:15]} 60. g5 {[%clk 0:00:09.2]} 60... b2 {[%clk
0:00:15.3]} 61. g6 {[%clk 0:00:09.6]} 61... b1=Q {[%clk 0:00:15.1]} 62. g7
{[%clk 0:00:09.9]} 62... Qe4+ {[%clk 0:00:14.9]} 63. Kf2 {[%clk 0:00:09.7]}
63... Rc2+ {[%clk 0:00:14.8]} 0-1